[Event "*** Titled Tuesday Blitz"]
[Site "Chess.com"]
[Date "2020.11.03"]
[Round "7"]
[White "Sacbutt"]
[Black "Region_07"]
[Result "0-1"]
[WhiteElo "2294"]
[BlackElo "2448"]
[TimeControl "180+1"]
[EndTime "11:19:48 PST"]
[Termination "Region_07 won by checkmate"]

1. e4 {[%clk 0:03:00.9]} 1... Nc6 {[%clk 0:02:58]} 2. d4 {[%clk 0:03:00]} 2...
d5 {[%clk 0:02:58]} 3. e5 {[%clk 0:02:57.9]} 3... f6 {[%clk 0:02:57]} 4. Bd3
{[%clk 0:02:54.6]} 4... g6 {[%clk 0:02:42.4]} 5. f4 {[%clk 0:02:47.7]} 5... Nh6
{[%clk 0:02:40.9]} 6. Nf3 {[%clk 0:02:46.3]} 6... Bg7 {[%clk 0:02:39.9]} 7. O-O
{[%clk 0:02:42.5]} 7... O-O {[%clk 0:02:39.3]} 8. Nc3 {[%clk 0:02:34.9]} 8...
Bg4 {[%clk 0:02:37.2]} 9. Ne2 {[%clk 0:02:26.8]} 9... Nf5 {[%clk 0:02:32.2]} 10.
c3 {[%clk 0:02:24.7]} 10... e6 {[%clk 0:02:19.7]} 11. h3 {[%clk 0:02:24.1]}
11... Bxf3 {[%clk 0:02:18.4]} 12. Rxf3 {[%clk 0:02:25]} 12... fxe5 {[%clk
0:02:08.2]} 13. fxe5 {[%clk 0:02:22.6]} 13... Qh4 {[%clk 0:02:01]} 14. Bd2
{[%clk 0:02:11.1]} 14... Nfxd4 {[%clk 0:01:43.8]} 15. Nxd4 {[%clk 0:02:00.7]}
15... Nxd4 {[%clk 0:01:15.8]} 16. cxd4 {[%clk 0:01:43.7]} 16... Qxd4+ {[%clk
0:01:16.7]} 17. Kh1 {[%clk 0:01:34]} 17... Rxf3 {[%clk 0:01:08.1]} 18. Qxf3
{[%clk 0:01:34.9]} 18... Qxb2 {[%clk 0:01:07.8]} 19. Rd1 {[%clk 0:01:15.6]}
19... Rf8 {[%clk 0:01:02.6]} 20. Qe2 {[%clk 0:01:08.9]} 20... c5 {[%clk
0:00:35.9]} 21. Rb1 {[%clk 0:00:53.6]} 21... Qxe5 {[%clk 0:00:34.7]} 22. Qxe5
{[%clk 0:00:49.4]} 22... Bxe5 {[%clk 0:00:35.6]} 23. Rxb7 {[%clk 0:00:39.5]}
23... c4 {[%clk 0:00:35.7]} 24. Be2 {[%clk 0:00:35.9]} 24... Rf2 {[%clk
0:00:35.1]} 25. Bh6 {[%clk 0:00:35.7]} 25... Rxe2 {[%clk 0:00:31.9]} 26. Rxa7
{[%clk 0:00:27.4]} 26... Re1# {[%clk 0:00:30]} 0-1

[Event "*** Titled Tuesday Blitz"]
[Site "Chess.com"]
[Date "2020.11.03"]
[Round "7"]
[White "Eloist"]
[Black "infinitegiantkiller"]
[Result "0-1"]
[WhiteElo "2280"]
[BlackElo "2463"]
[TimeControl "180+1"]
[EndTime "11:19:49 PST"]
[Termination "infinitegiantkiller won by resignation"]

1. e4 {[%clk 0:03:00.9]} 1... e6 {[%clk 0:03:00.9]} 2. d4 {[%clk 0:03:00.3]}
2... d5 {[%clk 0:03:01.8]} 3. Nd2 {[%clk 0:03:00.4]} 3... c5 {[%clk 0:03:01.2]}
4. Ngf3 {[%clk 0:02:59.9]} 4... cxd4 {[%clk 0:02:45.8]} 5. Nxd4 {[%clk 0:02:58]}
5... Nc6 {[%clk 0:02:42.5]} 6. Bb5 {[%clk 0:02:56.1]} 6... Bd7 {[%clk
0:02:39.7]} 7. Nxc6 {[%clk 0:02:55.5]} 7... bxc6 {[%clk 0:02:37.6]} 8. Bd3
{[%clk 0:02:55.1]} 8... Bd6 {[%clk 0:02:24.7]} 9. Qe2 {[%clk 0:02:52.4]} 9...
Ne7 {[%clk 0:02:16]} 10. Nf3 {[%clk 0:02:51.5]} 10... O-O {[%clk 0:02:07.4]} 11.
O-O {[%clk 0:02:50.1]} 11... Ng6 {[%clk 0:01:55.2]} 12. e5 {[%clk 0:02:32.3]}
12... Be7 {[%clk 0:01:53.8]} 13. c4 {[%clk 0:02:23.5]} 13... c5 {[%clk 0:01:49]}
14. Re1 {[%clk 0:02:19.8]} 14... Bc6 {[%clk 0:01:40.3]} 15. g3 {[%clk
0:02:04.8]} 15... Rb8 {[%clk 0:01:33.9]} 16. h4 {[%clk 0:02:02.6]} 16... dxc4
{[%clk 0:01:31]} 17. Bxc4 {[%clk 0:01:56.5]} 17... Rb4 {[%clk 0:01:31.4]} 18. b3
{[%clk 0:01:50.4]} 18... Bxf3 {[%clk 0:01:24.5]} 19. Qxf3 {[%clk 0:01:49.6]}
19... Nxe5 {[%clk 0:01:18.6]} 20. Rxe5 {[%clk 0:01:45]} 20... Qd4 {[%clk
0:01:18.9]} 21. Re1 {[%clk 0:00:32.3]} 21... Qxa1 {[%clk 0:01:14.8]} 22. Bd2
{[%clk 0:00:32.2]} 22... Qxa2 {[%clk 0:01:12.2]} 23. Bxb4 {[%clk 0:00:29.4]}
23... cxb4 {[%clk 0:01:13.1]} 24. Qb7 {[%clk 0:00:24]} 24... Bc5 {[%clk
0:01:09.2]} 25. Re2 {[%clk 0:00:23.7]} 25... Qb1+ {[%clk 0:01:06.5]} 26. Kg2
{[%clk 0:00:23.4]} 26... Qf5 {[%clk 0:00:53.1]} 27. Qc7 {[%clk 0:00:17.5]} 27...
Bb6 {[%clk 0:00:51.9]} 28. Qe7 {[%clk 0:00:17.5]} 28... Bc5 {[%clk 0:00:49.9]}
29. h5 {[%clk 0:00:17]} 29... Bxe7 {[%clk 0:00:49.1]} 0-1

[Event "*** Titled Tuesday Blitz"]
[Site "Chess.com"]
[Date "2020.11.03"]
[Round "7"]
[White "DenisQ"]
[Black "Zq1"]
[Result "0-1"]
[WhiteElo "2648"]
[BlackElo "2525"]
[TimeControl "180+1"]
[EndTime "11:19:52 PST"]
[Termination "Zq1 won on time"]

1. Nf3 {[%clk 0:03:00.9]} 1... Nf6 {[%clk 0:02:56.1]} 2. g3 {[%clk 0:03:00.4]}
2... d5 {[%clk 0:02:52.5]} 3. Bg2 {[%clk 0:03:00.4]} 3... e6 {[%clk 0:02:52.1]}
4. O-O {[%clk 0:02:59.7]} 4... Be7 {[%clk 0:02:51.6]} 5. d4 {[%clk 0:02:59.1]}
5... b5 {[%clk 0:02:50.4]} 6. Ne5 {[%clk 0:02:53.1]} 6... Bb7 {[%clk 0:02:49.2]}
7. Nd2 {[%clk 0:02:48.7]} 7... O-O {[%clk 0:02:48.6]} 8. a4 {[%clk 0:02:40.2]}
8... b4 {[%clk 0:02:48.2]} 9. c4 {[%clk 0:02:38.8]} 9... c5 {[%clk 0:02:40.3]}
10. dxc5 {[%clk 0:02:33.8]} 10... Bxc5 {[%clk 0:02:38.8]} 11. Nb3 {[%clk
0:02:30.8]} 11... Be7 {[%clk 0:02:38.4]} 12. a5 {[%clk 0:02:19.4]} 12... Na6
{[%clk 0:02:36.5]} 13. Bf4 {[%clk 0:02:12.1]} 13... Rc8 {[%clk 0:02:23.2]} 14.
Qd2 {[%clk 0:01:48.6]} 14... Ne4 {[%clk 0:02:11.7]} 15. Bxe4 {[%clk 0:01:24.2]}
15... dxe4 {[%clk 0:02:10.9]} 16. Rfd1 {[%clk 0:01:10.2]} 16... f6 {[%clk
0:01:58.6]} 17. Qe3 {[%clk 0:01:02.9]} 17... Qe8 {[%clk 0:01:44.7]} 18. Nd7
{[%clk 0:01:01]} 18... e5 {[%clk 0:01:40.7]} 19. Qxa7 {[%clk 0:00:59]} 19... Bc6
{[%clk 0:01:29.8]} 20. Be3 {[%clk 0:00:45]} 20... Ra8 {[%clk 0:01:22.2]} 21.
Qxa8 {[%clk 0:00:18.4]} 21... Bxa8 {[%clk 0:01:10.8]} 22. Nxf8 {[%clk
0:00:17.2]} 22... Bxf8 {[%clk 0:01:10.6]} 23. c5 {[%clk 0:00:15.8]} 23... f5
{[%clk 0:01:05.2]} 24. Rac1 {[%clk 0:00:12.4]} 24... Bc6 {[%clk 0:01:03.1]} 25.
Nd2 {[%clk 0:00:11]} 25... h6 {[%clk 0:00:58.4]} 26. Nc4 {[%clk 0:00:10.7]}
26... g5 {[%clk 0:00:55.3]} 27. Nd6 {[%clk 0:00:10.6]} 27... Qe6 {[%clk
0:00:55.2]} 28. Bd2 {[%clk 0:00:08.9]} 28... f4 {[%clk 0:00:54.3]} 0-1

[Event "*** Titled Tuesday Blitz"]
[Site "Chess.com"]
[Date "2020.11.03"]
[Round "7"]
[White "levallem"]
[Black "guillembaches"]
[Result "0-1"]
[WhiteElo "2237"]
[BlackElo "2378"]
[TimeControl "180+1"]
[EndTime "11:19:52 PST"]
[Termination "guillembaches won on time"]

1. e4 {[%clk 0:03:00.9]} 1... c5 {[%clk 0:02:57.4]} 2. d4 {[%clk 0:02:59.1]}
2... cxd4 {[%clk 0:02:56.8]} 3. c3 {[%clk 0:02:54.3]} 3... dxc3 {[%clk
0:02:57.7]} 4. Nxc3 {[%clk 0:02:54.8]} 4... Nc6 {[%clk 0:02:57.9]} 5. Nf3 {[%clk
0:02:54.5]} 5... e6 {[%clk 0:02:58.3]} 6. Bc4 {[%clk 0:02:49.1]} 6... a6 {[%clk
0:02:58.6]} 7. Qe2 {[%clk 0:02:48.8]} 7... Nge7 {[%clk 0:02:58.9]} 8. O-O {[%clk
0:02:48.6]} 8... Ng6 {[%clk 0:02:58.6]} 9. e5 {[%clk 0:02:48.5]} 9... Qc7 {[%clk
0:02:55.5]} 10. Re1 {[%clk 0:02:07]} 10... Ncxe5 {[%clk 0:02:29.4]} 11. Nxe5
{[%clk 0:01:52.2]} 11... Nxe5 {[%clk 0:02:29.4]} 12. Bb3 {[%clk 0:01:52.1]}
12... Bd6 {[%clk 0:01:29.9]} 13. Bf4 {[%clk 0:01:22.8]} 13... f6 {[%clk
0:01:11.9]} 14. Rac1 {[%clk 0:00:42.1]} 14... Qb8 {[%clk 0:01:05]} 15. Ne4
{[%clk 0:00:35.2]} 15... Be7 {[%clk 0:01:01.1]} 16. Bxe5 {[%clk 0:00:17.9]}
16... Qxe5 {[%clk 0:00:59.1]} 17. Qf3 {[%clk 0:00:17.7]} 17... Qb8 {[%clk
0:00:45.4]} 18. Nc5 {[%clk 0:00:12.5]} 18... b6 {[%clk 0:00:40.9]} 19. Ne4
{[%clk 0:00:03.4]} 19... d5 {[%clk 0:00:34.5]} 0-1

[Event "*** Titled Tuesday Blitz"]
[Site "Chess.com"]
[Date "2020.11.03"]
[Round "7"]
[White "Chopper1905"]
[Black "Gabrielian_Artur"]
[Result "1-0"]
[WhiteElo "2926"]
[BlackElo "2794"]
[TimeControl "180+1"]
[EndTime "11:19:56 PST"]
[Termination "Chopper1905 won by resignation"]

1. d4 {[%clk 0:03:00.9]} 1... Nf6 {[%clk 0:02:59.6]} 2. Bf4 {[%clk 0:03:00.6]}
2... g6 {[%clk 0:02:59.2]} 3. e3 {[%clk 0:02:56.9]} 3... Bg7 {[%clk 0:02:59]} 4.
Nf3 {[%clk 0:02:55.8]} 4... O-O {[%clk 0:02:58.4]} 5. Nbd2 {[%clk 0:02:53]} 5...
d6 {[%clk 0:02:57.9]} 6. h3 {[%clk 0:02:52.9]} 6... b6 {[%clk 0:02:55.9]} 7. Bh2
{[%clk 0:02:52]} 7... Bb7 {[%clk 0:02:55.3]} 8. Bc4 {[%clk 0:02:51.5]} 8... Nbd7
{[%clk 0:02:46.9]} 9. a4 {[%clk 0:02:51.1]} 9... a5 {[%clk 0:02:43.7]} 10. O-O
{[%clk 0:02:50.8]} 10... Qe8 {[%clk 0:02:42.6]} 11. Re1 {[%clk 0:02:48.8]} 11...
e5 {[%clk 0:02:40.2]} 12. e4 {[%clk 0:02:43.5]} 12... Nh5 {[%clk 0:02:31.1]} 13.
c3 {[%clk 0:02:35.9]} 13... Qe7 {[%clk 0:02:28.7]} 14. Qb3 {[%clk 0:02:27.8]}
14... Kh8 {[%clk 0:02:26]} 15. Rad1 {[%clk 0:02:27.3]} 15... Rad8 {[%clk
0:02:16.1]} 16. Bb5 {[%clk 0:02:23.1]} 16... h6 {[%clk 0:02:11.1]} 17. Qa3
{[%clk 0:02:21.2]} 17... exd4 {[%clk 0:01:30.3]} 18. cxd4 {[%clk 0:02:17.2]}
18... Rfe8 {[%clk 0:01:14.2]} 19. Qc3 {[%clk 0:01:47.3]} 19... c5 {[%clk
0:01:09.2]} 20. Nc4 {[%clk 0:01:47.1]} 20... cxd4 {[%clk 0:01:04.1]} 21. Nxd4
{[%clk 0:01:48]} 21... Nc5 {[%clk 0:00:57.6]} 22. Bxe8 {[%clk 0:01:46.2]} 22...
Nxe4 {[%clk 0:00:42.8]} 23. Qc2 {[%clk 0:01:28.4]} 23... d5 {[%clk 0:00:34.6]}
24. Nc6 {[%clk 0:01:07.1]} 24... Qg5 {[%clk 0:00:13.2]} 25. Nxd8 {[%clk
0:01:02.2]} 25... Qxd8 {[%clk 0:00:12.1]} 26. Qxe4 {[%clk 0:00:51.4]} 26... Nf6
{[%clk 0:00:10.2]} 27. Qe7 {[%clk 0:00:48.4]} 1-0

[Event "*** Titled Tuesday Blitz"]
[Site "Chess.com"]
[Date "2020.11.03"]
[Round "7"]
[White "Semetey"]
[Black "GMaka"]
[Result "1-0"]
[WhiteElo "2574"]
[BlackElo "2404"]
[TimeControl "180+1"]
[EndTime "11:19:56 PST"]
[Termination "Semetey won by resignation"]

1. e4 {[%clk 0:03:00.9]} 1... c6 {[%clk 0:02:59.2]} 2. Nc3 {[%clk 0:03:01.8]}
2... d5 {[%clk 0:02:59.7]} 3. Nf3 {[%clk 0:03:01.4]} 3... dxe4 {[%clk
0:02:59.5]} 4. Nxe4 {[%clk 0:03:01.2]} 4... Nf6 {[%clk 0:03:00.4]} 5. Nxf6+
{[%clk 0:02:59.6]} 5... exf6 {[%clk 0:03:00.8]} 6. h3 {[%clk 0:02:55.8]} 6...
Bd6 {[%clk 0:02:59.4]} 7. Bc4 {[%clk 0:02:55.3]} 7... Be6 {[%clk 0:02:58.4]} 8.
Qe2 {[%clk 0:02:54.1]} 8... Qe7 {[%clk 0:02:57.2]} 9. O-O {[%clk 0:02:54]} 9...
O-O {[%clk 0:02:46.3]} 10. Re1 {[%clk 0:02:53.6]} 10... Re8 {[%clk 0:02:45.9]}
11. Bxe6 {[%clk 0:02:45.6]} 11... fxe6 {[%clk 0:02:45.3]} 12. d4 {[%clk
0:02:43.5]} 12... Nd7 {[%clk 0:02:43.6]} 13. Qc4 {[%clk 0:02:41.5]} 13... Qf7
{[%clk 0:02:43.2]} 14. Qb3 {[%clk 0:02:34.7]} 14... Nb6 {[%clk 0:02:23.1]} 15.
Bd2 {[%clk 0:02:28.3]} 15... Re7 {[%clk 0:01:50.6]} 16. c4 {[%clk 0:02:21.3]}
16... e5 {[%clk 0:01:44.2]} 17. c5 {[%clk 0:02:20.8]} 17... Bxc5 {[%clk
0:01:35.7]} 18. dxc5 {[%clk 0:02:16.4]} 18... Qxb3 {[%clk 0:01:34.3]} 19. axb3
{[%clk 0:02:15.9]} 19... Nd5 {[%clk 0:01:35.2]} 20. Bc3 {[%clk 0:02:12.8]} 20...
a6 {[%clk 0:01:34.6]} 21. Nd2 {[%clk 0:02:12.6]} 21... Rd8 {[%clk 0:01:29.3]}
22. Nc4 {[%clk 0:02:10]} 22... Red7 {[%clk 0:01:26.7]} 23. b4 {[%clk 0:02:02.5]}
23... g5 {[%clk 0:01:20.4]} 24. Nd6 {[%clk 0:01:58.1]} 24... Kg7 {[%clk
0:01:18.6]} 25. g3 {[%clk 0:01:49.4]} 25... Kg6 {[%clk 0:01:17.4]} 26. Kg2
{[%clk 0:01:39.9]} 26... h5 {[%clk 0:01:16.1]} 27. Re4 {[%clk 0:01:32.2]} 27...
Ne7 {[%clk 0:01:06.6]} 28. f4 {[%clk 0:01:28.8]} 28... exf4 {[%clk 0:00:39.1]}
29. gxf4 {[%clk 0:01:29.7]} 29... Nd5 {[%clk 0:00:39]} 30. fxg5 {[%clk
0:01:28.6]} 30... fxg5 {[%clk 0:00:39.4]} 31. Rf1 {[%clk 0:01:16.9]} 31... Nf4+
{[%clk 0:00:37.9]} 32. Kh2 {[%clk 0:01:16.7]} 32... h4 {[%clk 0:00:31.7]} 33.
Rg1 {[%clk 0:01:14.2]} 33... Kh5 {[%clk 0:00:31]} 34. Bf6 {[%clk 0:01:07.9]}
34... Rg8 {[%clk 0:00:30.8]} 35. Re5 {[%clk 0:01:07]} 35... Nd5 {[%clk
0:00:14.4]} 36. Bxg5 {[%clk 0:01:05.5]} 1-0

[Event "*** Titled Tuesday Blitz"]
[Site "Chess.com"]
[Date "2020.11.03"]
[Round "7"]
[White "Eliwood44"]
[Black "Sueetin"]
[Result "0-1"]
[WhiteElo "2432"]
[BlackElo "2321"]
[TimeControl "180+1"]
[EndTime "11:19:59 PST"]
[Termination "Sueetin won by resignation"]

1. d4 {[%clk 0:03:00.9]} 1... Nf6 {[%clk 0:02:59.7]} 2. Nf3 {[%clk 0:02:58.2]}
2... d5 {[%clk 0:02:57]} 3. c4 {[%clk 0:02:57.9]} 3... e6 {[%clk 0:02:56.9]} 4.
Nc3 {[%clk 0:02:58.1]} 4... Bb4 {[%clk 0:02:56.6]} 5. cxd5 {[%clk 0:02:57]} 5...
exd5 {[%clk 0:02:56.2]} 6. Bg5 {[%clk 0:02:56.9]} 6... Nbd7 {[%clk 0:02:55.4]}
7. e3 {[%clk 0:02:56.4]} 7... c5 {[%clk 0:02:55.6]} 8. a3 {[%clk 0:02:54.9]}
8... Bxc3+ {[%clk 0:02:50]} 9. bxc3 {[%clk 0:02:54.6]} 9... c4 {[%clk
0:02:48.6]} 10. Be2 {[%clk 0:02:54.2]} 10... Qa5 {[%clk 0:02:45.9]} 11. O-O
{[%clk 0:02:53.7]} 11... Ne4 {[%clk 0:02:45.5]} 12. Bh4 {[%clk 0:02:42.9]} 12...
Nxc3 {[%clk 0:02:43.1]} 13. Qe1 {[%clk 0:02:42.9]} 13... Nxe2+ {[%clk
0:02:42.2]} 14. Qxe2 {[%clk 0:02:43.8]} 14... O-O {[%clk 0:02:39.3]} 15. e4
{[%clk 0:02:44.1]} 15... dxe4 {[%clk 0:02:37.4]} 16. Qxe4 {[%clk 0:02:45]} 16...
Nb6 {[%clk 0:02:21.7]} 17. Rfe1 {[%clk 0:02:10.7]} 17... Qd5 {[%clk 0:02:03.1]}
18. Qe7 {[%clk 0:02:06.7]} 18... Be6 {[%clk 0:01:35.2]} 19. Ng5 {[%clk
0:01:57.8]} 19... Rfe8 {[%clk 0:01:25.8]} 20. Qb4 {[%clk 0:01:53.5]} 20... Qxd4
{[%clk 0:01:08.9]} 21. Nf3 {[%clk 0:01:40.8]} 21... Qg4 {[%clk 0:01:02.5]} 22.
h3 {[%clk 0:01:39]} 22... Qg6 {[%clk 0:00:54.2]} 23. Re5 {[%clk 0:01:35.8]}
23... f6 {[%clk 0:00:43.4]} 24. Re3 {[%clk 0:01:26.9]} 24... Bf7 {[%clk
0:00:42.1]} 25. Rae1 {[%clk 0:01:23.7]} 25... Rxe3 {[%clk 0:00:42.2]} 26. Rxe3
{[%clk 0:01:24.6]} 26... Re8 {[%clk 0:00:42.7]} 27. Rxe8+ {[%clk 0:01:24.2]}
27... Bxe8 {[%clk 0:00:42.8]} 28. Bg3 {[%clk 0:01:22.3]} 28... Qd3 {[%clk
0:00:37.6]} 29. Qe7 {[%clk 0:01:19.2]} 29... Qd7 {[%clk 0:00:35.6]} 30. Qe3
{[%clk 0:01:18.8]} 30... Bf7 {[%clk 0:00:34.2]} 31. Bb8 {[%clk 0:01:16.7]} 31...
Qe8 {[%clk 0:00:30.5]} 32. Qf4 {[%clk 0:01:10.3]} 32... Nd5 {[%clk 0:00:28.2]}
33. Qd6 {[%clk 0:01:08.1]} 33... c3 {[%clk 0:00:27.2]} 34. Bxa7 {[%clk
0:01:04.2]} 34... c2 {[%clk 0:00:24]} 35. Qc5 {[%clk 0:01:04.1]} 35... Qc6
{[%clk 0:00:23]} 36. Qxc6 {[%clk 0:00:57]} 36... bxc6 {[%clk 0:00:22.8]} 37. Be3
{[%clk 0:00:55.4]} 37... Nxe3 {[%clk 0:00:22.5]} 38. fxe3 {[%clk 0:00:56.3]}
38... c1=Q+ {[%clk 0:00:22.7]} 0-1

[Event "*** Titled Tuesday Blitz"]
[Site "Chess.com"]
[Date "2020.11.03"]
[Round "7"]
[White "Rital44"]
[Black "Sergienko_Sergey"]
[Result "0-1"]
[WhiteElo "2445"]
[BlackElo "2325"]
[TimeControl "180+1"]
[EndTime "11:19:59 PST"]
[Termination "Sergienko_Sergey won by resignation"]

1. e4 {[%clk 0:03:00.9]} 1... c5 {[%clk 0:02:59.3]} 2. Nf3 {[%clk 0:02:59.3]}
2... a6 {[%clk 0:02:58.6]} 3. g3 {[%clk 0:02:57.6]} 3... Nc6 {[%clk 0:02:55]} 4.
Bg2 {[%clk 0:02:57.6]} 4... g6 {[%clk 0:02:54]} 5. O-O {[%clk 0:02:57.4]} 5...
Bg7 {[%clk 0:02:53.7]} 6. d3 {[%clk 0:02:57.3]} 6... d6 {[%clk 0:02:50.4]} 7. c3
{[%clk 0:02:57.6]} 7... e5 {[%clk 0:02:47.8]} 8. a3 {[%clk 0:02:55.7]} 8... Nge7
{[%clk 0:02:46]} 9. b4 {[%clk 0:02:55.8]} 9... O-O {[%clk 0:02:41]} 10. Be3
{[%clk 0:02:53.8]} 10... b6 {[%clk 0:02:38.7]} 11. Nbd2 {[%clk 0:02:53.1]} 11...
h6 {[%clk 0:02:33.1]} 12. Nc4 {[%clk 0:02:52.2]} 12... Be6 {[%clk 0:02:25.3]}
13. Rb1 {[%clk 0:02:49.5]} 13... b5 {[%clk 0:02:04.9]} 14. Nxd6 {[%clk
0:02:17.3]} 14... Qxd6 {[%clk 0:02:02.4]} 15. bxc5 {[%clk 0:02:18.2]} 15... Qd7
{[%clk 0:01:54.9]} 16. d4 {[%clk 0:02:18.5]} 16... Bc4 {[%clk 0:01:49.6]} 17. d5
{[%clk 0:02:17.1]} 17... Na5 {[%clk 0:01:28.7]} 18. Re1 {[%clk 0:02:11.4]} 18...
Rad8 {[%clk 0:01:24]} 19. Nd2 {[%clk 0:02:06.2]} 19... Bd3 {[%clk 0:01:16.8]}
20. c6 {[%clk 0:02:05.3]} 20... Nexc6 {[%clk 0:01:11.7]} 21. dxc6 {[%clk
0:02:05.1]} 21... Qxc6 {[%clk 0:01:10.4]} 22. Rc1 {[%clk 0:02:04.2]} 22... Nc4
{[%clk 0:01:07.7]} 23. Nxc4 {[%clk 0:02:03.7]} 23... Bxc4 {[%clk 0:00:54.2]} 24.
Qf3 {[%clk 0:02:02.2]} 24... Kh7 {[%clk 0:00:40.2]} 25. h4 {[%clk 0:02:00.5]}
25... h5 {[%clk 0:00:30.6]} 26. Bh3 {[%clk 0:01:57.9]} 26... Be6 {[%clk
0:00:28.2]} 27. Bf1 {[%clk 0:01:56]} 27... Bg4 {[%clk 0:00:25.5]} 28. Qg2 {[%clk
0:01:54.6]} 28... Be6 {[%clk 0:00:21.3]} 29. c4 {[%clk 0:01:42.3]} 29... bxc4
{[%clk 0:00:20.4]} 30. g4 {[%clk 0:01:42.2]} 30... hxg4 {[%clk 0:00:18]} 31. h5
{[%clk 0:01:41]} 31... gxh5 {[%clk 0:00:17.4]} 32. Qh2 {[%clk 0:01:41.3]} 32...
Kg6 {[%clk 0:00:13.5]} 33. f3 {[%clk 0:01:38.2]} 33... Rh8 {[%clk 0:00:12]} 34.
f4 {[%clk 0:01:37]} 34... Qxe4 {[%clk 0:00:09.4]} 35. Bf2 {[%clk 0:01:31.5]}
35... Qxf4 {[%clk 0:00:08.4]} 36. Bg3 {[%clk 0:01:32]} 36... Qd2 {[%clk
0:00:07.5]} 37. Qh1 {[%clk 0:01:30]} 37... Qd4+ {[%clk 0:00:06.1]} 38. Bf2
{[%clk 0:01:29.4]} 38... Qf4 {[%clk 0:00:05.9]} 39. Be3 {[%clk 0:01:28.3]} 39...
Qg3+ {[%clk 0:00:05.9]} 40. Qg2 {[%clk 0:01:24.5]} 40... Qxg2+ {[%clk
0:00:05.5]} 41. Bxg2 {[%clk 0:01:25.4]} 41... Bh6 {[%clk 0:00:05.4]} 42. Bf2
{[%clk 0:01:25.2]} 42... Bxc1 {[%clk 0:00:04.6]} 0-1

[Event "*** Titled Tuesday Blitz"]
[Site "Chess.com"]
[Date "2020.11.03"]
[Round "7"]
[White "UCantHandleDenker"]
[Black "indfraeng"]
[Result "0-1"]
[WhiteElo "2488"]
[BlackElo "2366"]
[TimeControl "180+1"]
[EndTime "11:20:00 PST"]
[Termination "indfraeng won on time"]

1. Nf3 {[%clk 0:03:00.9]} 1... Nf6 {[%clk 0:02:59.5]} 2. g3 {[%clk 0:03:00.9]}
2... c5 {[%clk 0:02:56.8]} 3. Bg2 {[%clk 0:03:00.9]} 3... Nc6 {[%clk 0:02:57.5]}
4. O-O {[%clk 0:02:57.2]} 4... d5 {[%clk 0:02:57.7]} 5. d3 {[%clk 0:02:57.5]}
5... g6 {[%clk 0:02:57.2]} 6. Nbd2 {[%clk 0:02:57.1]} 6... Bg7 {[%clk
0:02:57.6]} 7. e4 {[%clk 0:02:57.6]} 7... O-O {[%clk 0:02:57.2]} 8. Re1 {[%clk
0:02:57]} 8... e5 {[%clk 0:02:55.7]} 9. exd5 {[%clk 0:02:56.5]} 9... Nxd5 {[%clk
0:02:56.6]} 10. a3 {[%clk 0:02:57]} 10... h6 {[%clk 0:02:56.6]} 11. Rb1 {[%clk
0:02:56.4]} 11... Re8 {[%clk 0:02:55.3]} 12. Ne4 {[%clk 0:02:55.4]} 12... b6
{[%clk 0:02:52.5]} 13. c4 {[%clk 0:02:55.6]} 13... Nc7 {[%clk 0:02:51.2]} 14. b4
{[%clk 0:02:56.2]} 14... f5 {[%clk 0:02:43.4]} 15. Ned2 {[%clk 0:02:53.7]} 15...
Qxd3 {[%clk 0:02:38.8]} 16. b5 {[%clk 0:02:51.5]} 16... Na5 {[%clk 0:02:34.4]}
17. Nh4 {[%clk 0:01:56.3]} 17... g5 {[%clk 0:02:11.8]} 18. Bxa8 {[%clk
0:01:50.2]} 18... Nxa8 {[%clk 0:02:12.7]} 19. Ng2 {[%clk 0:01:41]} 19... Nxc4
{[%clk 0:02:04.1]} 20. Rb3 {[%clk 0:01:27.5]} 20... Qd5 {[%clk 0:02:02.1]} 21.
Nxc4 {[%clk 0:01:27.3]} 21... Qxc4 {[%clk 0:02:03]} 22. Ne3 {[%clk 0:01:22.8]}
22... Qf7 {[%clk 0:02:00.2]} 23. Rd3 {[%clk 0:01:18.5]} 23... Nc7 {[%clk
0:01:56.4]} 24. Rd8 {[%clk 0:01:17.2]} 24... Nxb5 {[%clk 0:01:51.6]} 25. Rxe8+
{[%clk 0:01:15.5]} 25... Qxe8 {[%clk 0:01:52.5]} 26. Bb2 {[%clk 0:01:12.8]}
26... Nd4 {[%clk 0:01:49.2]} 27. Nc4 {[%clk 0:00:53.9]} 27... e4 {[%clk
0:01:41.8]} 28. Bxd4 {[%clk 0:00:50.1]} 28... cxd4 {[%clk 0:01:38.1]} 29. Nd6
{[%clk 0:00:50.6]} 29... Qe6 {[%clk 0:01:38.1]} 30. Nxc8 {[%clk 0:00:50.4]}
30... Qxc8 {[%clk 0:01:39]} 31. Qb3+ {[%clk 0:00:50.3]} 31... Kh7 {[%clk
0:01:38.8]} 32. Qf7 {[%clk 0:00:48]} 32... d3 {[%clk 0:01:34.3]} 33. Qd5 {[%clk
0:00:44.6]} 33... Qc5 {[%clk 0:01:31.5]} 34. Qf7 {[%clk 0:00:33.4]} 34... a5
{[%clk 0:01:21.5]} 35. g4 {[%clk 0:00:33.1]} 35... d2 {[%clk 0:01:14.3]} 36. Rd1
{[%clk 0:00:32.8]} 36... e3 {[%clk 0:01:14.8]} 37. Qe6 {[%clk 0:00:15.9]} 37...
Qc2 {[%clk 0:01:08.6]} 0-1

[Event "*** Titled Tuesday Blitz"]
[Site "Chess.com"]
[Date "2020.11.03"]
[Round "7"]
[White "dropstoneDP"]
[Black "seorobert1971"]
[Result "1-0"]
[WhiteElo "2910"]
[BlackElo "2740"]
[TimeControl "180+1"]
[EndTime "11:20:01 PST"]
[Termination "dropstoneDP won by resignation"]

1. e4 {[%clk 0:03:00.9]} 1... c5 {[%clk 0:03:00.1]} 2. Nf3 {[%clk 0:03:01.3]}
2... d6 {[%clk 0:03:00.2]} 3. d4 {[%clk 0:03:01]} 3... cxd4 {[%clk 0:03:01.1]}
4. Nxd4 {[%clk 0:03:01.5]} 4... Nf6 {[%clk 0:03:01.3]} 5. Nc3 {[%clk 0:03:02]}
5... a6 {[%clk 0:03:01.6]} 6. Be2 {[%clk 0:02:58.7]} 6... g6 {[%clk 0:03:00.7]}
7. Be3 {[%clk 0:02:58.5]} 7... Bg7 {[%clk 0:02:59.8]} 8. Qd2 {[%clk 0:02:59.1]}
8... Nc6 {[%clk 0:02:59.9]} 9. O-O-O {[%clk 0:02:58.7]} 9... O-O {[%clk
0:02:59.7]} 10. h4 {[%clk 0:02:58.9]} 10... h5 {[%clk 0:02:58.4]} 11. f3 {[%clk
0:02:38]} 11... Qa5 {[%clk 0:02:52.5]} 12. Kb1 {[%clk 0:02:37.6]} 12... Nxd4
{[%clk 0:02:48.5]} 13. Bxd4 {[%clk 0:02:38.5]} 13... Be6 {[%clk 0:02:48.5]} 14.
g4 {[%clk 0:02:19.1]} 14... Rfc8 {[%clk 0:02:47.4]} 15. a3 {[%clk 0:02:14.5]}
15... hxg4 {[%clk 0:02:29.6]} 16. h5 {[%clk 0:02:14.2]} 16... gxh5 {[%clk
0:02:23.7]} 17. fxg4 {[%clk 0:02:10.9]} 17... Nxg4 {[%clk 0:02:21.2]} 18. e5
{[%clk 0:01:22]} 18... dxe5 {[%clk 0:02:09.7]} 19. Rxh5 {[%clk 0:01:22]} 19...
Qd8 {[%clk 0:02:08.8]} 20. Rdh1 {[%clk 0:01:04.8]} 20... f6 {[%clk 0:01:37.5]}
21. Qd3 {[%clk 0:00:36.6]} 21... Qxd4 {[%clk 0:01:33.5]} 22. Qh7+ {[%clk
0:00:36.8]} 22... Kf8 {[%clk 0:01:32.6]} 23. Qg6 {[%clk 0:00:34.3]} 23... Nf2
{[%clk 0:00:56.7]} 24. Rh8+ {[%clk 0:00:18.7]} 24... Bg8 {[%clk 0:00:55.8]} 25.
Rg1 {[%clk 0:00:15.1]} 25... Rxc3 {[%clk 0:00:35.3]} 26. Rxg8+ {[%clk
0:00:14.3]} 1-0